[Event "Early-Titled-Tuesday-Blitz-January-23-2024"]
[Site "Chess.com"]
[Date "2024.01.23"]
[Round "10"]
[White "Alexei_Kornev"]
[Black "FARIZA2018"]
[Result "1/2-1/2"]
[WhiteElo "2724"]
[BlackElo "2554"]
[TimeControl "180+1"]
[EndTime "9:57:11 PST"]
[Termination "Game drawn by repetition"]

1. e4 {[%clk 0:03:00.9]} 1... e5 {[%clk 0:03:00.1]} 2. Nf3 {[%clk 0:03:00.6]}
2... Nc6 {[%clk 0:03:00.2]} 3. Bb5 {[%clk 0:03:01.2]} 3... a6 {[%clk 0:03:00.4]}
4. Ba4 {[%clk 0:03:01.5]} 4... Nf6 {[%clk 0:03:00.4]} 5. O-O {[%clk 0:03:01.8]}
5... Be7 {[%clk 0:03:00.5]} 6. d3 {[%clk 0:03:01.8]} 6... b5 {[%clk 0:03:00.7]}
7. Bb3 {[%clk 0:03:02.3]} 7... d6 {[%clk 0:03:00.6]} 8. a4 {[%clk 0:03:02]} 8...
Bg4 {[%clk 0:02:56.6]} 9. c3 {[%clk 0:03:01.2]} 9... O-O {[%clk 0:02:55.5]} 10.
Nbd2 {[%clk 0:03:00.9]} 10... Na5 {[%clk 0:02:51]} 11. Ba2 {[%clk 0:02:59.3]}
11... c5 {[%clk 0:02:50.6]} 12. Re1 {[%clk 0:02:59.3]} 12... Qd7 {[%clk
0:02:47.8]} 13. axb5 {[%clk 0:02:55.1]} 13... axb5 {[%clk 0:02:47.3]} 14. Nf1
{[%clk 0:02:55.2]} 14... Be6 {[%clk 0:02:42.8]} 15. Bxe6 {[%clk 0:02:51.6]}
15... Qxe6 {[%clk 0:02:41.7]} 16. N1d2 {[%clk 0:02:43.5]} 16... h6 {[%clk
0:02:34.7]} 17. d4 {[%clk 0:02:42.1]} 17... c4 {[%clk 0:02:20.9]} 18. Qc2 {[%clk
0:02:35]} 18... Rfd8 {[%clk 0:02:10.1]} 19. d5 {[%clk 0:02:29.6]} 19... Qd7
{[%clk 0:02:09.6]} 20. b4 {[%clk 0:02:29.1]} 20... cxb3 {[%clk 0:02:06.9]} 21.
Nxb3 {[%clk 0:02:28.8]} 21... Nc4 {[%clk 0:01:55.9]} 22. Rb1 {[%clk 0:02:26]}
22... Rdc8 {[%clk 0:01:47.8]} 23. Qd3 {[%clk 0:02:22.8]} 23... Qc7 {[%clk
0:01:19]} 24. Nbd2 {[%clk 0:02:18.5]} 24... Qc5 {[%clk 0:01:16.7]} 25. Nxc4
{[%clk 0:02:16.7]} 25... bxc4 {[%clk 0:01:16.3]} 26. Qc2 {[%clk 0:02:14.9]}
26... Rcb8 {[%clk 0:01:01.6]} 27. Be3 {[%clk 0:02:14.2]} 27... Qc7 {[%clk
0:01:01.1]} 28. h3 {[%clk 0:02:13.9]} 28... Ra3 {[%clk 0:00:56.5]} 29. Nd2
{[%clk 0:02:12.4]} 29... Rba8 {[%clk 0:00:54.2]} 30. Rb2 {[%clk 0:02:11.7]}
30... Nd7 {[%clk 0:00:53]} 31. Reb1 {[%clk 0:02:10.1]} 31... Bg5 {[%clk
0:00:47.9]} 32. Bxg5 {[%clk 0:01:54.2]} 32... hxg5 {[%clk 0:00:47.3]} 33. Rb4
{[%clk 0:01:53.2]} 33... Nc5 {[%clk 0:00:43.2]} 34. Nxc4 {[%clk 0:01:49.9]}
34... Ra2 {[%clk 0:00:42.9]} 35. R4b2 {[%clk 0:01:49.4]} 35... Rxb2 {[%clk
0:00:40.8]} 36. Rxb2 {[%clk 0:01:48.6]} 36... Ra4 {[%clk 0:00:37.9]} 37. Rb4
{[%clk 0:01:44.9]} 37... Ra1+ {[%clk 0:00:36.7]} 38. Rb1 {[%clk 0:01:42.2]}
38... Ra4 {[%clk 0:00:20]} 39. Nd2 {[%clk 0:01:35.8]} 39... Qa7 {[%clk
0:00:20.1]} 40. Nb3 {[%clk 0:01:21.1]} 40... Nxe4 {[%clk 0:00:18.8]} 41. Rb2
{[%clk 0:01:18.9]} 41... Nf6 {[%clk 0:00:15.8]} 42. c4 {[%clk 0:01:17.7]} 42...
Qc7 {[%clk 0:00:15.3]} 43. Nd2 {[%clk 0:01:06.3]} 43... Ra1+ {[%clk 0:00:15.3]}
44. Rb1 {[%clk 0:01:06.2]} 44... Qa5 {[%clk 0:00:15.2]} 45. Kh2 {[%clk
0:00:57.3]} 45... Rxb1 {[%clk 0:00:14.9]} 46. Nxb1 {[%clk 0:00:58.2]} 46... Qc5
{[%clk 0:00:14.7]} 47. Qd3 {[%clk 0:00:55.7]} 47... g6 {[%clk 0:00:13.9]} 48. f3
{[%clk 0:00:54.3]} 48... Kg7 {[%clk 0:00:13.5]} 49. Nd2 {[%clk 0:00:53.7]} 49...
Qf2 {[%clk 0:00:10.4]} 50. Ne4 {[%clk 0:00:52.9]} 50... Nxe4 {[%clk 0:00:10]}
51. Qxe4 {[%clk 0:00:53.8]} 51... Qc5 {[%clk 0:00:09.6]} 52. h4 {[%clk
0:00:51.4]} 52... gxh4 {[%clk 0:00:09.2]} 53. Qxh4 {[%clk 0:00:52.3]} 53... Qe3
{[%clk 0:00:09.3]} 54. Qe4 {[%clk 0:00:48.1]} 54... Qh6+ {[%clk 0:00:08.7]} 55.
Kg1 {[%clk 0:00:47.9]} 55... Qc1+ {[%clk 0:00:09.4]} 56. Kf2 {[%clk 0:00:48.3]}
56... Qb2+ {[%clk 0:00:09.7]} 57. Kg3 {[%clk 0:00:47.6]} 57... Qc1 {[%clk
0:00:09.8]} 58. Qh4 {[%clk 0:00:39.4]} 58... Qe1+ {[%clk 0:00:09.2]} 59. Kh3
{[%clk 0:00:38.4]} 59... Qh1+ {[%clk 0:00:09]} 60. Kg3 {[%clk 0:00:38.5]} 60...
Qe1+ {[%clk 0:00:08.8]} 61. Kh3 {[%clk 0:00:38.7]} 61... Qh1+ {[%clk 0:00:06.3]}
62. Kg3 {[%clk 0:00:38.9]} 62... Qe1+ {[%clk 0:00:06.3]} 1/2-1/2

[Event "Early-Titled-Tuesday-Blitz-January-23-2024"]
[Site "Chess.com"]
[Date "2024.01.23"]
[Round "10"]
[White "maciek_92"]
[Black "mortngabriel"]
[Result "1-0"]
[WhiteElo "2803"]
[BlackElo "2523"]
[TimeControl "180+1"]
[EndTime "9:57:11 PST"]
[Termination "maciek_92 won on time"]

1. e4 {[%clk 0:03:00.9]} 1... c5 {[%clk 0:02:59.3]} 2. Nf3 {[%clk 0:03:00.1]}
2... Nc6 {[%clk 0:02:58.5]} 3. c3 {[%clk 0:02:59]} 3... Nf6 {[%clk 0:02:55.6]}
4. e5 {[%clk 0:02:59.3]} 4... Nd5 {[%clk 0:02:55]} 5. Bc4 {[%clk 0:02:59.9]}
5... Nb6 {[%clk 0:02:54.3]} 6. Bb3 {[%clk 0:03:00.6]} 6... c4 {[%clk 0:02:53.6]}
7. Bc2 {[%clk 0:03:00.5]} 7... g6 {[%clk 0:02:38.5]} 8. O-O {[%clk 0:02:57.5]}
8... Bg7 {[%clk 0:02:38.7]} 9. Qe2 {[%clk 0:02:56.6]} 9... O-O {[%clk 0:02:32]}
10. b3 {[%clk 0:02:56]} 10... cxb3 {[%clk 0:02:10.1]} 11. axb3 {[%clk
0:02:56.9]} 11... d6 {[%clk 0:02:07.7]} 12. exd6 {[%clk 0:02:44.7]} 12... Qxd6
{[%clk 0:02:08.6]} 13. d4 {[%clk 0:02:40.8]} 13... Bg4 {[%clk 0:01:56.5]} 14. h3
{[%clk 0:02:34.5]} 14... Bxf3 {[%clk 0:01:56.5]} 15. Qxf3 {[%clk 0:02:35.4]}
15... Rac8 {[%clk 0:01:50.3]} 16. Ba3 {[%clk 0:02:26.6]} 16... Qf6 {[%clk
0:01:39.9]} 17. Qe4 {[%clk 0:02:09.4]} 17... Rfd8 {[%clk 0:01:32.5]} 18. Rd1
{[%clk 0:01:59.5]} 18... Nd5 {[%clk 0:01:17.9]} 19. Bb2 {[%clk 0:01:48.3]} 19...
e5 {[%clk 0:00:53.7]} 20. c4 {[%clk 0:01:46.9]} 20... Ndb4 {[%clk 0:00:48.8]}
21. d5 {[%clk 0:01:47.2]} 21... Nxc2 {[%clk 0:00:47.7]} 22. Qxc2 {[%clk
0:01:46.6]} 22... Nd4 {[%clk 0:00:46]} 23. Bxd4 {[%clk 0:01:41.7]} 23... exd4
{[%clk 0:00:46.9]} 24. Qd3 {[%clk 0:01:41.8]} 24... a6 {[%clk 0:00:45.6]} 25.
Nd2 {[%clk 0:01:41.8]} 25... b5 {[%clk 0:00:43.5]} 26. Nf3 {[%clk 0:01:41.5]}
26... bxc4 {[%clk 0:00:41.6]} 27. bxc4 {[%clk 0:01:41.4]} 27... Rc5 {[%clk
0:00:31.9]} 28. Nd2 {[%clk 0:01:19.5]} 28... Rc7 {[%clk 0:00:27.5]} 29. Nb3
{[%clk 0:01:09.8]} 29... Qd6 {[%clk 0:00:19.5]} 30. Na5 {[%clk 0:01:06.2]} 30...
Re8 {[%clk 0:00:13.7]} 31. Nc6 {[%clk 0:01:04.8]} 31... Rxc6 {[%clk 0:00:12.1]}
32. dxc6 {[%clk 0:01:05.7]} 32... Qxc6 {[%clk 0:00:12.9]} 33. Re1 {[%clk
0:01:02.5]} 33... Rc8 {[%clk 0:00:12.1]} 34. Rec1 {[%clk 0:00:46]} 34... h5
{[%clk 0:00:10.4]} 35. c5 {[%clk 0:00:44.8]} 35... Qd5 {[%clk 0:00:06.6]} 36.
Qc4 {[%clk 0:00:32.3]} 36... Qxc4 {[%clk 0:00:06.8]} 37. Rxc4 {[%clk 0:00:33.2]}
37... Rc6 {[%clk 0:00:07.1]} 38. Kf1 {[%clk 0:00:31.2]} 38... d3 {[%clk
0:00:03.1]} 39. Rd1 {[%clk 0:00:27.4]} 39... Bf8 {[%clk 0:00:03]} 40. Rxd3
{[%clk 0:00:25.6]} 40... Rxc5 {[%clk 0:00:03.6]} 41. Rxc5 {[%clk 0:00:25.2]}
41... Bxc5 {[%clk 0:00:04.5]} 42. Rd8+ {[%clk 0:00:25.6]} 42... Kg7 {[%clk
0:00:04.3]} 43. Ra8 {[%clk 0:00:26.5]} 43... Bd6 {[%clk 0:00:04.2]} 44. Rxa6
{[%clk 0:00:26.8]} 44... Be5 {[%clk 0:00:05.1]} 45. h4 {[%clk 0:00:23.6]} 45...
Bf6 {[%clk 0:00:05.1]} 46. g3 {[%clk 0:00:22]} 46... Be5 {[%clk 0:00:06]} 47.
Ke2 {[%clk 0:00:21.9]} 47... Bf6 {[%clk 0:00:06.1]} 48. Ke3 {[%clk 0:00:21.6]}
48... Be5 {[%clk 0:00:06.2]} 49. Ke4 {[%clk 0:00:21.7]} 49... Bf6 {[%clk
0:00:06]} 50. Ra4 {[%clk 0:00:20.3]} 50... Bd8 {[%clk 0:00:05.3]} 51. Kd5 {[%clk
0:00:19.2]} 51... Bb6 {[%clk 0:00:05.8]} 52. Ra2 {[%clk 0:00:19.6]} 52... Kh7
{[%clk 0:00:03.2]} 53. Ke5 {[%clk 0:00:16.9]} 53... Kg7 {[%clk 0:00:03.1]} 54.
Kd6 {[%clk 0:00:17.5]} 54... Bd4 {[%clk 0:00:03]} 55. Ke7 {[%clk 0:00:17.2]}
55... Bc5+ {[%clk 0:00:03.1]} 56. Ke8 {[%clk 0:00:17.3]} 56... Kf6 {[%clk
0:00:02.1]} 57. Rc2 {[%clk 0:00:15.5]} 57... Bd6 {[%clk 0:00:01.3]} 58. Rc6
{[%clk 0:00:13.9]} 1-0

[Event "Early-Titled-Tuesday-Blitz-January-23-2024"]
[Site "Chess.com"]
[Date "2024.01.23"]
[Round "10"]
[White "TheoSlade"]
[Black "Roman_Ovetchkin"]
[Result "0-1"]
[WhiteElo "2467"]
[BlackElo "2635"]
[TimeControl "180+1"]
[EndTime "9:57:14 PST"]
[Termination "Roman_Ovetchkin won by resignation"]

1. d4 {[%clk 0:03:00.9]} 1... Nf6 {[%clk 0:02:57.8]} 2. c4 {[%clk 0:03:01.1]}
2... c5 {[%clk 0:02:57]} 3. d5 {[%clk 0:03:00.7]} 3... b5 {[%clk 0:02:57.3]} 4.
cxb5 {[%clk 0:03:01.6]} 4... a6 {[%clk 0:02:57.6]} 5. bxa6 {[%clk 0:03:02.5]}
5... g6 {[%clk 0:02:57.8]} 6. Nc3 {[%clk 0:03:03]} 6... Bg7 {[%clk 0:02:58.1]}
7. e4 {[%clk 0:03:03.6]} 7... O-O {[%clk 0:02:58.4]} 8. a7 {[%clk 0:02:59.4]}
8... Rxa7 {[%clk 0:02:55.8]} 9. Nf3 {[%clk 0:03:00]} 9... d6 {[%clk 0:02:52.6]}
10. Be2 {[%clk 0:02:55.2]} 10... Ba6 {[%clk 0:02:51.8]} 11. O-O {[%clk
0:02:54.7]} 11... Qb6 {[%clk 0:02:41.8]} 12. a4 {[%clk 0:02:52]} 12... Bxe2
{[%clk 0:02:34.9]} 13. Qxe2 {[%clk 0:02:51.7]} 13... Nfd7 {[%clk 0:02:33]} 14.
Nb5 {[%clk 0:02:42.8]} 14... Ra8 {[%clk 0:02:31.5]} 15. Nd2 {[%clk 0:02:36.4]}
15... Na6 {[%clk 0:02:25.9]} 16. Nc4 {[%clk 0:02:36.7]} 16... Qd8 {[%clk
0:02:22.2]} 17. Bd2 {[%clk 0:02:33.2]} 17... Nb4 {[%clk 0:02:06.7]} 18. Bc3
{[%clk 0:02:29.8]} 18... Nb6 {[%clk 0:01:40.7]} 19. Bxg7 {[%clk 0:02:25]} 19...
Kxg7 {[%clk 0:01:39.8]} 20. b3 {[%clk 0:02:19.4]} 20... Nxc4 {[%clk 0:01:26.7]}
21. bxc4 {[%clk 0:02:14.7]} 21... Ra6 {[%clk 0:01:24.3]} 22. Ra3 {[%clk
0:02:08.7]} 22... Qd7 {[%clk 0:01:21.6]} 23. Rfa1 {[%clk 0:01:58.7]} 23... e5
{[%clk 0:01:09.4]} 24. dxe6 {[%clk 0:01:52.7]} 24... fxe6 {[%clk 0:01:10.3]} 25.
Qd2 {[%clk 0:01:39.8]} 25... e5 {[%clk 0:01:07]} 26. Rd1 {[%clk 0:01:29.3]}
26... Rf6 {[%clk 0:01:06.3]} 27. Nc3 {[%clk 0:01:23.8]} 27... Qb7 {[%clk
0:00:49.4]} 28. Nd5 {[%clk 0:01:21.9]} 28... Nxd5 {[%clk 0:00:48.9]} 29. Qxd5
{[%clk 0:01:18.1]} 29... Qxd5 {[%clk 0:00:48.9]} 30. Rxd5 {[%clk 0:01:14.7]}
30... Kf7 {[%clk 0:00:48.6]} 31. Rd1 {[%clk 0:01:09.2]} 31... Ke6 {[%clk
0:00:48.7]} 32. Rb1 {[%clk 0:01:01.5]} 32... Rf7 {[%clk 0:00:48.9]} 33. a5
{[%clk 0:00:58.6]} 33... Rfa7 {[%clk 0:00:47.7]} 34. Rb5 {[%clk 0:00:59.1]}
34... g5 {[%clk 0:00:47.3]} 35. Kf1 {[%clk 0:00:54.2]} 35... h5 {[%clk
0:00:46.9]} 36. Ke2 {[%clk 0:00:38.1]} 36... g4 {[%clk 0:00:44.4]} 37. f3 {[%clk
0:00:30.1]} 37... Ra8 {[%clk 0:00:43.5]} 38. fxg4 {[%clk 0:00:27]} 38... hxg4
{[%clk 0:00:44.4]} 39. h3 {[%clk 0:00:26.6]} 39... gxh3 {[%clk 0:00:39.6]} 40.
gxh3 {[%clk 0:00:27.5]} 40... R6a7 {[%clk 0:00:38.2]} 41. h4 {[%clk 0:00:26.1]}
41... Rg7 {[%clk 0:00:36]} 42. a6 {[%clk 0:00:21.1]} 42... Rg2+ {[%clk
0:00:35.2]} 43. Kf1 {[%clk 0:00:18.3]} 43... Rag8 {[%clk 0:00:27.4]} 44. a7
{[%clk 0:00:06.5]} 44... Rg1+ {[%clk 0:00:27]} 45. Ke2 {[%clk 0:00:05.2]} 45...
R8g2+ {[%clk 0:00:27.5]} 46. Kf3 {[%clk 0:00:03.2]} 46... Rg3+ {[%clk
0:00:27.7]} 47. Kf2 {[%clk 0:00:03.8]} 47... R1g2+ {[%clk 0:00:27.5]} 48. Kf1
{[%clk 0:00:03.9]} 48... Rxa3 {[%clk 0:00:27.6]} 49. Kxg2 {[%clk 0:00:04.4]}
49... Rxa7 {[%clk 0:00:28.2]} 50. h5 {[%clk 0:00:04]} 50... Rh7 {[%clk
0:00:27.8]} 51. Rb8 {[%clk 0:00:03.9]} 51... Rxh5 {[%clk 0:00:27.8]} 52. Re8+
{[%clk 0:00:04.5]} 52... Kd7 {[%clk 0:00:27.5]} 53. Rg8 {[%clk 0:00:05.1]} 53...
Rh4 {[%clk 0:00:26.9]} 54. Kf3 {[%clk 0:00:05.6]} 54... Rh3+ {[%clk 0:00:27.3]}
55. Ke2 {[%clk 0:00:05.7]} 55... Rc3 {[%clk 0:00:27.9]} 56. Rg7+ {[%clk
0:00:05.4]} 56... Kc6 {[%clk 0:00:28.1]} 57. Rg8 {[%clk 0:00:05.5]} 57... Rxc4
{[%clk 0:00:28.5]} 58. Kd3 {[%clk 0:00:06]} 58... Rd4+ {[%clk 0:00:28.9]} 59.
Ke3 {[%clk 0:00:06.8]} 59... c4 {[%clk 0:00:29.3]} 60. Rc8+ {[%clk 0:00:06.7]}
60... Kb5 {[%clk 0:00:29.5]} 61. Rb8+ {[%clk 0:00:06.6]} 61... Ka4 {[%clk
0:00:29.6]} 62. Rb7 {[%clk 0:00:06.4]} 62... Ka3 {[%clk 0:00:29.7]} 63. Rb6
{[%clk 0:00:06.5]} 63... c3 {[%clk 0:00:30]} 64. Rc6 {[%clk 0:00:06.4]} 64...
Kb2 {[%clk 0:00:30.1]} 65. Rb6+ {[%clk 0:00:06.9]} 65... Kc1 {[%clk 0:00:30]}
66. Ra6 {[%clk 0:00:07.2]} 66... c2 {[%clk 0:00:30.1]} 67. Ra1+ {[%clk
0:00:07.8]} 67... Kb2 {[%clk 0:00:30]} 68. Rh1 {[%clk 0:00:08.5]} 68... c1=Q+
{[%clk 0:00:28.3]} 69. Rxc1 {[%clk 0:00:09.1]} 69... Kxc1 {[%clk 0:00:29.2]} 0-1

[Event "Early-Titled-Tuesday-Blitz-January-23-2024"]
[Site "Chess.com"]
[Date "2024.01.23"]
[Round "10"]
[White "DarkAlekhine"]
[Black "JeFumeDesClopes"]
[Result "0-1"]
[WhiteElo "2682"]
[BlackElo "2550"]
[TimeControl "180+1"]
[EndTime "9:57:17 PST"]
[Termination "JeFumeDesClopes won on time"]

1. e4 {[%clk 0:02:55.3]} 1... g6 {[%clk 0:03:00]} 2. d4 {[%clk 0:02:55.2]} 2...
Bg7 {[%clk 0:03:00.5]} 3. Nc3 {[%clk 0:02:55.7]} 3... d6 {[%clk 0:03:01]} 4. Be3
{[%clk 0:02:55.9]} 4... a6 {[%clk 0:03:00.7]} 5. h4 {[%clk 0:02:52.6]} 5... h5
{[%clk 0:02:56]} 6. Qd2 {[%clk 0:02:51.1]} 6... Nf6 {[%clk 0:02:49]} 7. f3
{[%clk 0:02:51]} 7... b5 {[%clk 0:02:46.3]} 8. O-O-O {[%clk 0:02:50]} 8... b4
{[%clk 0:02:38.7]} 9. Nce2 {[%clk 0:02:49.8]} 9... a5 {[%clk 0:02:33.9]} 10. Kb1
{[%clk 0:02:49.6]} 10... Nbd7 {[%clk 0:02:31.9]} 11. Nh3 {[%clk 0:02:49.3]}
11... Nb6 {[%clk 0:02:32.3]} 12. Nc1 {[%clk 0:02:48]} 12... Bxh3 {[%clk
0:02:31.7]} 13. Rxh3 {[%clk 0:02:48.9]} 13... O-O {[%clk 0:02:29.5]} 14. Bh6
{[%clk 0:02:44.8]} 14... c5 {[%clk 0:02:18.8]} 15. d5 {[%clk 0:02:33.7]} 15...
c4 {[%clk 0:02:14]} 16. Bxg7 {[%clk 0:02:32.9]} 16... Kxg7 {[%clk 0:02:11.4]}
17. Qd4 {[%clk 0:02:32.4]} 17... Qc7 {[%clk 0:02:03.3]} 18. Ne2 {[%clk
0:01:22.2]} 18... Rfc8 {[%clk 0:01:50.7]} 19. Rg3 {[%clk 0:01:05]} 19... Qc5
{[%clk 0:01:44.1]} 20. Qxc5 {[%clk 0:01:04.9]} 20... Rxc5 {[%clk 0:01:45]} 21.
Nd4 {[%clk 0:01:05.2]} 21... Nbd7 {[%clk 0:01:28]} 22. Nc6 {[%clk 0:01:00.3]}
22... Kf8 {[%clk 0:01:26.6]} 23. Rh3 {[%clk 0:00:50.9]} 23... Nb8 {[%clk
0:01:18]} 24. Nd4 {[%clk 0:00:44.5]} 24... Nbd7 {[%clk 0:01:12.4]} 25. Rh1
{[%clk 0:00:38.2]} 25... Ne5 {[%clk 0:01:11.6]} 26. c3 {[%clk 0:00:34.6]} 26...
Rb8 {[%clk 0:01:08]} 27. Kc2 {[%clk 0:00:33.9]} 27... a4 {[%clk 0:00:49.2]} 28.
Be2 {[%clk 0:00:22.1]} 28... Rc7 {[%clk 0:00:45.8]} 29. a3 {[%clk 0:00:16.5]}
29... bxa3 {[%clk 0:00:43.4]} 30. bxa3 {[%clk 0:00:17.4]} 30... Rcb7 {[%clk
0:00:38.9]} 31. Rb1 {[%clk 0:00:17.3]} 31... Rb3 {[%clk 0:00:18]} 32. Nxb3
{[%clk 0:00:16.2]} 32... cxb3+ {[%clk 0:00:18.6]} 33. Kb2 {[%clk 0:00:16.2]}
33... Nfd7 {[%clk 0:00:18.8]} 34. Rbd1 {[%clk 0:00:13.4]} 34... Nc5 {[%clk
0:00:18.1]} 35. Rd4 {[%clk 0:00:13.6]} 35... Ke8 {[%clk 0:00:11.8]} 36. Rhd1
{[%clk 0:00:13]} 36... Kd7 {[%clk 0:00:10.3]} 37. Rb4 {[%clk 0:00:13.6]} 37...
Rg8 {[%clk 0:00:10.3]} 38. f4 {[%clk 0:00:09.4]} 38... Ng4 {[%clk 0:00:09.6]}
39. Bb5+ {[%clk 0:00:04.8]} 39... Kc7 {[%clk 0:00:08.9]} 40. Bxa4 {[%clk
0:00:05.1]} 40... Nf2 {[%clk 0:00:08.4]} 41. Rdd4 {[%clk 0:00:04]} 41... Nfd3+
{[%clk 0:00:08.4]} 42. Kb1 {[%clk 0:00:04.2]} 42... Nxb4 {[%clk 0:00:08.2]} 43.
Rxb4 {[%clk 0:00:05.1]} 43... Ra8 {[%clk 0:00:06.8]} 44. Bxb3 {[%clk 0:00:04.6]}
44... Rxa3 {[%clk 0:00:07.1]} 45. Kb2 {[%clk 0:00:04.9]} 45... Ra7 {[%clk
0:00:04.4]} 46. Bc2 {[%clk 0:00:05.3]} 46... e6 {[%clk 0:00:02.1]} 47. dxe6
{[%clk 0:00:05]} 47... fxe6 {[%clk 0:00:03]} 48. g3 {[%clk 0:00:05.1]} 48... Ra8
{[%clk 0:00:03.4]} 49. e5 {[%clk 0:00:04.7]} 49... dxe5 {[%clk 0:00:03.4]} 50.
fxe5 {[%clk 0:00:05.6]} 50... Rf8 {[%clk 0:00:03.5]} 51. Rf4 {[%clk 0:00:05.7]}
51... Rg8 {[%clk 0:00:02.2]} 52. Rf7+ {[%clk 0:00:04]} 52... Kc6 {[%clk
0:00:02.2]} 53. Bd1 {[%clk 0:00:03]} 53... Nd7 {[%clk 0:00:01.2]} 54. Bf3+
{[%clk 0:00:02.7]} 54... Kc7 {[%clk 0:00:01.9]} 0-1

[Event "Early-Titled-Tuesday-Blitz-January-23-2024"]
[Site "Chess.com"]
[Date "2024.01.23"]
[Round "10"]
[White "ChainedDowntohell"]
[Black "GMKrikor"]
[Result "1-0"]
[WhiteElo "2602"]
[BlackElo "2789"]
[TimeControl "180+1"]
[EndTime "9:57:22 PST"]
[Termination "ChainedDowntohell won by resignation"]

1. d4 {[%clk 0:02:32.7]} 1... Nf6 {[%clk 0:02:58.8]} 2. c4 {[%clk 0:02:32.4]}
2... g6 {[%clk 0:02:57.9]} 3. Nc3 {[%clk 0:02:32.4]} 3... d5 {[%clk 0:02:58]} 4.
cxd5 {[%clk 0:02:18.1]} 4... Nxd5 {[%clk 0:02:58.9]} 5. e4 {[%clk 0:02:18]} 5...
Nxc3 {[%clk 0:02:58.8]} 6. bxc3 {[%clk 0:02:18.9]} 6... Bg7 {[%clk 0:02:58.9]}
7. Bc4 {[%clk 0:02:19.2]} 7... c5 {[%clk 0:02:58.8]} 8. Ne2 {[%clk 0:02:19.3]}
8... O-O {[%clk 0:02:59]} 9. O-O {[%clk 0:02:16.7]} 9... Nc6 {[%clk 0:02:59]}
10. Be3 {[%clk 0:02:16]} 10... Bg4 {[%clk 0:02:58.9]} 11. f3 {[%clk 0:02:09.7]}
11... Bd7 {[%clk 0:02:58.9]} 12. Qd2 {[%clk 0:02:03.8]} 12... Qa5 {[%clk
0:02:57.4]} 13. Rfd1 {[%clk 0:01:56.2]} 13... cxd4 {[%clk 0:02:56.9]} 14. cxd4
{[%clk 0:01:57.1]} 14... Qxd2 {[%clk 0:02:56.9]} 15. Rxd2 {[%clk 0:01:57.6]}
15... Rfc8 {[%clk 0:02:57.3]} 16. Rb1 {[%clk 0:01:46.2]} 16... Be8 {[%clk
0:02:37.5]} 17. Kf2 {[%clk 0:01:35.7]} 17... e6 {[%clk 0:02:34.8]} 18. Bb5
{[%clk 0:01:26.8]} 18... Na5 {[%clk 0:02:03.9]} 19. Bxe8 {[%clk 0:01:22.6]}
19... Rxe8 {[%clk 0:02:04.8]} 20. Rc2 {[%clk 0:01:19.1]} 20... a6 {[%clk
0:01:54.8]} 21. Bd2 {[%clk 0:01:06.5]} 21... Nc6 {[%clk 0:01:54.8]} 22. Rxb7
{[%clk 0:01:05]} 22... Nxd4 {[%clk 0:01:41.7]} 23. Rcc7 {[%clk 0:01:03.7]} 23...
Nb5 {[%clk 0:01:00.7]} 24. Rxf7 {[%clk 0:01:02.6]} 24... Ba1 {[%clk 0:00:57.2]}
25. Rxh7 {[%clk 0:00:51.8]} 25... Rab8 {[%clk 0:00:46.8]} 26. Rxb8 {[%clk
0:00:35.1]} 26... Rxb8 {[%clk 0:00:47.7]} 27. Re7 {[%clk 0:00:35]} 27... Nd6
{[%clk 0:00:43.8]} 28. Rxe6 {[%clk 0:00:33.1]} 28... Nc4 {[%clk 0:00:44.1]} 29.
Bc3 {[%clk 0:00:29.4]} 29... Bxc3 {[%clk 0:00:38.7]} 30. Nxc3 {[%clk 0:00:30.3]}
30... Rb2+ {[%clk 0:00:38.8]} 31. Kg3 {[%clk 0:00:30.2]} 31... Ne3 {[%clk
0:00:39.6]} 32. Rxg6+ {[%clk 0:00:22.9]} 32... Kf7 {[%clk 0:00:39.3]} 33. Rxa6
{[%clk 0:00:22.8]} 33... Rxg2+ {[%clk 0:00:39.1]} 34. Kf4 {[%clk 0:00:23.2]}
34... Nc2 {[%clk 0:00:36.2]} 35. Nd5 {[%clk 0:00:20.9]} 35... Rxh2 {[%clk
0:00:33]} 36. e5 {[%clk 0:00:19.7]} 36... Nd4 {[%clk 0:00:33.1]} 37. Ke4 {[%clk
0:00:16.7]} 37... Rh4+ {[%clk 0:00:32.5]} 38. f4 {[%clk 0:00:16.7]} 38... Ne6
{[%clk 0:00:31.2]} 39. Ra7+ {[%clk 0:00:09.9]} 39... Kf8 {[%clk 0:00:30.5]} 40.
a4 {[%clk 0:00:05.2]} 40... Rh5 {[%clk 0:00:19.1]} 41. Ra8+ {[%clk 0:00:05.3]}
41... Kf7 {[%clk 0:00:19.2]} 42. Ra7+ {[%clk 0:00:05.9]} 42... Kf8 {[%clk
0:00:19.9]} 43. a5 {[%clk 0:00:06.1]} 43... Nc5+ {[%clk 0:00:20.1]} 44. Kf3
{[%clk 0:00:05.4]} 44... Rh3+ {[%clk 0:00:19]} 45. Kg4 {[%clk 0:00:05.3]} 45...
Ra3 {[%clk 0:00:16.1]} 46. Nf6 {[%clk 0:00:05.4]} 46... Ne6 {[%clk 0:00:13.7]}
47. Nd7+ {[%clk 0:00:05.4]} 47... Ke8 {[%clk 0:00:13.7]} 48. Nf6+ {[%clk
0:00:05.4]} 48... Kf8 {[%clk 0:00:14.3]} 49. Kf5 {[%clk 0:00:04.9]} 49... Nd4+
{[%clk 0:00:14.8]} 50. Ke4 {[%clk 0:00:04.9]} 50... Ne6 {[%clk 0:00:14.5]} 51.
f5 {[%clk 0:00:04.2]} 51... Ng5+ {[%clk 0:00:10.1]} 52. Kf4 {[%clk 0:00:03.9]}
52... Nh3+ {[%clk 0:00:10]} 53. Kg4 {[%clk 0:00:02.7]} 53... Nf2+ {[%clk
0:00:10.6]} 54. Kh5 {[%clk 0:00:02.6]} 54... Rh3+ {[%clk 0:00:05.5]} 55. Kg5
{[%clk 0:00:02.7]} 55... Rg3+ {[%clk 0:00:05]} 56. Kf4 {[%clk 0:00:02.5]} 56...
Ra3 {[%clk 0:00:05.6]} 57. e6 {[%clk 0:00:02.5]} 57... Nd3+ {[%clk 0:00:06.5]}
58. Kg5 {[%clk 0:00:02.5]} 58... Ne5 {[%clk 0:00:04.6]} 59. e7+ {[%clk
0:00:03.1]} 1-0